Cogmind - Beta 13 @@@ ROGUE MODE // 2024.07.13 @ 22:44:57 Player: koksu120 Result: Destroyed by as-35430 with Assembled Maul Performance ------------- Evolutions (1) 500 Regions Visited (3) 600 Robots Destroyed (9) 45 Value Destroyed (307) 307 Prototype IDs (0) 0 Alien Tech Used (0) 0 Bonus (0) 0 TOTAL SCORE: 1452 Bonus ------- None Cogmind --------- Core Integrity 0/400 Matter 300/300 Energy 99/100 System Corruption 24% Temperature Cool (0) Movement Core (100) Ox1 Location -9/Mines Parts ------- > --- POWER (1) -------- (None) > --- PROPULSION (3) --- (None) > --- UTILITY (3) ------ Small Storage Unit > --- WEAPON (2) ------- (None) > --- INVENTORY (8) ---- Ion Engine Ion Engine Core Shielding Peak State ------------ > --- POWER ------------ Nuclear Core > --- PROPULSION ------- Hover Unit Improved Hover Unit > --- UTILITY ---------- Small Storage Unit Sensor Array Signal Interpreter > --- WEAPON ----------- EM Pulse Gun Small Laser > --- INVENTORY -------- Ion Engine Nuclear Core Compact Wheel Visual Processing Unit Medium Laser Assault Rifle Light Assault Rifle [Rating: 12] Favorites ----------- Power Nuclear Core Engine Ion Engine Power Core Nuclear Core Propulsion Light Treads Treads Light Treads Leg Aluminum Leg Wheel Compact Wheel Hover Unit Hover Unit Utility Small Storage Unit Device Sensor Array Storage Small Storage Unit Processor Signal Interpreter Weapon Assault Rifle Energy Gun EM Pulse Gun Ballistic Gun Assault Rifle Special Weapon Mining Laser Build | -11 -10 -9 -9 ------- Run | Yrd Mat Mat Min Slots Evolved 2 | . . 2 . Power . | . . . . Propulsion 1 | . . 1 . Utility 1 | . . 1 . Weapon . | . . . . Parts Attached 22 | 3 6 12 1 Power 5 | 1 1 3 . Engine 2 | 1 1 . . Core 3 | . . 3 . Reactor . | . . . . Propulsion 8 | 2 2 4 . Treads 2 | 2 . . . Leg 2 | . . 2 . Wheel 1 | . . 1 . Hover 3 | . 2 1 . Flight . | . . . . Utility 3 | . 1 2 . Device 1 | . 1 . . Storage . | . . . . Processor 2 | . . 2 . Hackware . | . . . . Protection . | . . . . Artifact . | . . . . Weapon 6 | . 2 3 1 Energy Gun 3 | . 2 1 . Energy Cannon . | . . . . Ballistic Gun 2 | . . 2 . Ballistic Cannon . | . . . . Launcher . | . . . . Special Weapon 1 | . . . 1 Impact Weapon . | . . . . Slashing Weapon . | . . . . Piercing Weapon . | . . . . Special Melee Weapon . | . . . . Unidentified Prototypes . | . . . . Corrupted Parts 1 | . . 1 . System Corruption 2 | . . 2 . Parts Lost 16 | . . 9 7 Power 3 | . . 2 1 Propulsion 6 | . . 4 2 Utility 3 | . . 1 2 Weapon 4 | . . 2 2 Highest Loss Streak 7 | . . 7 7 To Critical Strikes . | . . . . Average Slot Usage (%) 81 | . 88 76 79 Engine 5 | . 14 . . Core 6 | . . 10 11 Treads 7 | . 20 . . Leg 4 | . . 5 22 Hover 7 | . 7 8 . Device 4 | . 4 4 . Storage 12 | . 14 11 11 Processor 8 | . . 13 19 Energy Gun 14 | . 16 13 . Ballistic Gun 8 | . 11 7 8 Naked Turns . | . . . . Heaviest Build 16 | 14 15 16 14 Greatest Support 40 | 40 40 23 23 Greatest Overweight (x) 4 | . 4 4 1 Average Overweight (x) . | . . . . Largest Inventory Capacity 8 | 8 8 8 8 Average Capacity 8 | 8 8 8 8 Most Carried 8 | 6 8 8 4 Average Carried 5 | 4 4 5 3 Final Capacity 8 | 8 8 8 8 Final Carried 7 | 3 7 4 3 Class Distribution -------------------- 70% | Mutant 29% | Scavenger-Mutant Dominant Class ---------------- Mutant | -10/Materials Mutant | -9/Materials Scavenger-Mutant | -9/Mines Resources | -11 -10 -9 -9 ----------- Run | Yrd Mat Mat Min Matter Collected 389 | 198 91 70 30 Remotely . | . . . . Salvage Created 333 | . 91 193 49 Parts 16 | . 6 7 3 Haulers Intercepted . | . . . . Recyclers Shooed . | . . . . Parts Field Recycled . | . . . . Retrieved Matter . | . . . . Parts Self-Destructed . | . . . . Prevented . | . . . . Kills | -11 -10 -9 -9 ------- Run | Yrd Mat Mat Min Combat Hostiles Destroyed 7 | . 1 4 2 Guns 5 | . . 4 1 Cannons 1 | . . . 1 AOE 1 | . 1 . . Classes Destroyed 5 | . 3 2 . Operator 1 | . 1 . . Watcher 1 | . 1 . . Grunt 5 | . 1 2 2 Duelist 1 | . . 1 . Sentry 1 | . . 1 . Best Kill Streak 2 | . 1 2 2 Combat Bots Only 2 | . 1 2 2 Max Kills in Single Turn 1 | . 1 1 1 Gunslinging . | . . . . Exploded 1 | . 1 . . Melee . | . . . . Uniques/NPCs Destroyed . | . . . . Combat | -11 -10 -9 -9 -------- Run | Yrd Mat Mat Min Hostile Shots Fired 130 | . 2 85 43 Missed 39 | . 1 22 16 Damage Taken 1386 | . 14 916 456 Core 413 | . . 278 135 Absorbed by Shields . | . . . . Core Remaining (%) 100 | 100 100 . . Volleys Fired 46 | . 6 36 4 Largest 2 | . 2 2 2 Hottest 120 | . 80 90 120 Shots Fired 70 | . 12 51 7 Gun 66 | . 12 51 3 Cannon . | . . . . Launcher . | . . . . Special 4 | . . . 4 Kinetic 11 | . 4 4 3 Thermal 47 | . 5 38 4 Explosive . | . . . . Electromagnetic 12 | . 3 9 . Robot Hit Streak 14 | . 5 14 4 Robot Miss Streak 3 | . 1 3 2 Penetration Max . | . . . . Secondary Targets 1 | . . 1 . Max Gunslinging Chain 1 | . . 1 . Shots Hit Robots 47 | . 10 33 4 Core Hits 17 | . 4 10 3 Critical Kills 1 | . 1 . . Critical Parts Destroyed . | . . . . Critical Strikes 2 | . 1 1 . Destroy 1 | . 1 . . Corrupt 1 | . . 1 . Melee Attacks . | . . . . Impact . | . . . . Slashing . | . . . . Piercing . | . . . . Sneak Attacks . | . . . . Combat Hostiles . | . . . . Follow-up Attacks . | . . . . Damage Inflicted 687 | . 186 435 66 Guns 587 | . 136 435 16 Cannons . | . . . . Explosions 43 | . 43 . . Melee . | . . . . Ramming 7 | . 7 . . Kinetic 80 | . 34 30 16 Thermal 480 | . 90 340 50 Explosive . | . . . . Electromagnetic 120 | . 55 65 . Impact . | . . . . Slashing . | . . . . Piercing . | . . . . Highest Corruption 24 | . 2 2 24 Average Corruption 2 | . 2 2 5 Corruption Purged . | . . . . Corruption Blocked . | . . . . Effects 1 | . . . 1 Message Errors 1 | . . . 1 Overload Shots . | . . . . Overflow Damage . | . . . . Projectiles . | . . . . Explosions . | . . . . Melee . | . . . . Knockbacks . | . . . . Impact . | . . . . Kinetic . | . . . . Secondary . | . . . . Self-Inflicted Damage 3 | . 3 . . Shots . | . . . . Rammed 1 | . 1 . . Targets Rammed 1 | . 1 . . Kicked . | . . . . Crushed . | . . . . Highest Temperature 202 | . 54 202 147 Average Temperature 77 | . 17 84 91 Received Heat Transfer 408 | . 6 336 66 Siege Activations . | . . . . Robots Corrupted . | . . . . Combat Hostiles . | . . . . Parts Fried . | . . . . Impact Corruptions . | . . . . Robots Melted . | . . . . Combat Hostiles . | . . . . Parts Melted 4 | . 1 3 . Heat Transferred 1142 | . 174 868 100 Parts Sabotaged . | . . . . Parts Stolen . | . . . . Parts Stripped . | . . . . Power Chain Reactions 1 | . 1 . . Alert | -11 -10 -9 -9 ------- Run | Yrd Mat Mat Min Peak Influence 67 | . 67 60 64 Initial 27 | . . 27 23 Average 36 | . 26 44 29 Maximum Alert Level . | . . . . Low Security (%) 100 | 100 100 100 100 Level 1 . | . . . . Level 2 . | . . . . Level 3 . | . . . . Level 4 . | . . . . Level 5 . | . . . . High Security . | . . . . Max Security . | . . . . Squads Dispatched 1 | . 1 . . Investigation . | . . . . Extermination . | . . . . Reinforcement 1 | . 1 . . Assault . | . . . . Garrison . | . . . . Intercept . | . . . . Searches Triggered . | . . . . Construction Impeded . | . . . . Haulers Reinforced . | . . . . Active Scanning Responses . | . . . . Cargo Convoy Interrupts . | . . . . Stealth | -11 -10 -9 -9 --------- Run | Yrd Mat Mat Min Distress Signals . | . . . . Communications Jammed . | . . . . Distress Signals . | . . . . Times Spotted 26 | . 3 4 19 Peak Tracking Total 19 | . 1 3 19 Tactical Retreats 1 | . . . 1 Traps | -11 -10 -9 -9 ------- Run | Yrd Mat Mat Min Traps Triggered 1 | . 1 . . Indirectly . | . . . . Trap Hack Attempts . | . . . . Triggered . | . . . . Disarmed . | . . . . Reprogrammed . | . . . . Reused . | . . . . Traps Extracted . | . . . . Installed . | . . . . Triggered . | . . . . Machines | -11 -10 -9 -9 ---------- Run | Yrd Mat Mat Min Machines Disabled . | . . . . Max in Single Turn . | . . . . Machines Repaired . | . . . . Machines Dismantled . | . . . . Machines Sabotaged . | . . . . Overloaded Fab Kills . | . . . . Hacking | -11 -10 -9 -9 --------- Run | Yrd Mat Mat Min Machines Accessed 1 | . 1 . . Terminals 1 | . 1 . . Fabricators . | . . . . Repair Stations . | . . . . Recycling Units . | . . . . Scanalyzers . | . . . . Garrison Access . | . . . . Total Hacks 3 | . 3 . . Successful 2 | . 2 . . Failed 1 | . 1 . . Catastrophic . | . . . . Database Lockouts . | . . . . Manual . | . . . . Terminals 3 | . 3 . . Fabricators . | . . . . Repair Stations . | . . . . Recycling Units . | . . . . Scanalyzers . | . . . . Garrison Access . | . . . . Terminal Hacks 2 | . 2 . . Robot Analysis 1 | . 1 . . Investigation Status 1 | . 1 . . Fabricator Hacks . | . . . . Repair Station Hacks . | . . . . Recycling Unit Hacks . | . . . . Scanalyzer . | . . . . Garrison Access Hacks . | . . . . Unauthorized Hacks . | . . . . Terminals . | . . . . Fabricators . | . . . . Repair Stations . | . . . . Recycling Units . | . . . . Scanalyzers . | . . . . Garrison Access . | . . . . Data Cores Recovered . | . . . . Used . | . . . . Hacking Detections . | . . . . Full Trace Events . | . . . . Feedback Events . | . . . . Feedback Blocked . | . . . . Robot Schematics Acquired . | . . . . Robots Built . | . . . . Authchips . | . . . . Time . | . . . . Total Robot Build Rating . | . . . . Part Schematics Acquired . | . . . . Parts Built . | . . . . Authchips . | . . . . Time . | . . . . Total Part Build Rating . | . . . . Parts Repaired . | . . . . Time . | . . . . Parts Recycled . | . . . . Recycled Matter . | . . . . Retrieved Matter . | . . . . Retrieved Components . | . . . . Parts Scanalyzed . | . . . . Part Schematics Acquired . | . . . . Parts Damaged . | . . . . Bothacking | -11 -10 -9 -9 ------------ Run | Yrd Mat Mat Min Used RIF Installer . | . . . . Robots Hacked . | . . . . Non-combat . | . . . . Combat . | . . . . Robot Hacks Applied . | . . . . Relay Couplers Released . | . . . . Fabnet Peak Effective % . | . . . . Robots Rewired . | . . . . Allies Hacked . | . . . . Hacks Repelled . | . . . . Allies | -11 -10 -9 -9 -------- Run | Yrd Mat Mat Min Total Allies . | . . . . Largest Group . | . . . . Highest-Rated Group . | . . . . Highest-Rated Ally . | . . . . Total Orders . | . . . . Ally Attacks . | . . . . Total Damage . | . . . . Kills . | . . . . Allies Corrupted . | . . . . Allies Melted . | . . . . Intel | -11 -10 -9 -9 ------- Run | Yrd Mat Mat Min Robot Analysis Total 1 | . 1 . . Derelict Logs Recovered . | . . . . Drone Launches . | . . . . Drone Recoveries . | . . . . Exploration | -11 -10 -9 -9 ------------- Run | Yrd Mat Mat Min Turns Passed 623 | 6 234 346 37 Spaces Moved 345 | 1 142 187 15 Core 17 | . 2 11 4 Treads 96 | 1 95 . . Legs 84 | . . 73 11 Wheels 3 | . . 3 . Hover 145 | . 45 100 . Flight . | . . . . Fastest Speed 56 | 160 56 56 100 Average Speed 120 | 160 128 115 114 Slowest Speed 250 | 160 250 250 120 Overloaded Moves . | . . . . Propulsion Burnouts . | . . . . Robots Hopped . | . . . . Cave-ins Triggered . | . . . . Exploration Rate (%) 13 | 2 26 23 4 Regions Visited 3 Branch Regions 1 Pre-discovered Areas . | . . . . Known Exits Taken 1 | . . 1 . Unknown Exits Taken 2 | 1 1 . . Scrap Searched . | . . . . Spaces Dug . | . . . . Terrain Destroyed 4 | . 3 . 1 Melee . | . . . . Projectile 1 | . . . 1 AOE 3 | . 3 . . Terrain Rammed . | . . . . Walls Destroyed . | . . . . Machines Disabled . | . . . . Actions | -11 -10 -9 -9 --------- Run | Yrd Mat Mat Min Total 475 | 6 180 268 21 Wait 41 | . 18 23 . Move 342 | . 141 186 15 Hop . | . . . . Pick Up 15 | . 6 9 . Fast Attach 1 | . 1 . . Attach 17 | 2 2 12 1 Detach . | . . . . Swap 4 | 1 3 . . Drop 8 | 3 2 2 1 Fire 46 | . 6 36 4 Melee . | . . . . Ram 1 | . 1 . . Kick . | . . . . Crush . | . . . . Escape Stasis . | . . . . Rewire . | . . . . Trap . | . . . . Miscellaneous . | . . . . Route ------- -11/Scrapyard -10/Materials -9/Materials -9/Mines History --------- Turn | Location | Event 7 | -11/Scrapyard | Discovered new exit (range 0) 7 | -11/Scrapyard | Entered Materials 234 | -10/Materials | Discovered new exit (range 14) 241 | -10/Materials | Entered another Materials area 241 | -9/Materials | Evolved 2 slots: Propulsion x1, Utility x1 429 | -9/Materials | Core integrity fell below 50% 469 | -9/Materials | Lost 7 parts (1p3n1u2w) 544 | -9/Materials | Discovered new exit (range 14) 586 | -9/Materials | Identified exit to Mines 587 | -9/Materials | Entered Mines 588 | -9/Mines | Assembled infested the area 593 | -9/Mines | Assisted by a Guerilla fighting off Assembled 618 | -9/Mines | Core integrity fell below 20% 621 | -9/Mines | System corruption reached 10% 624 | -9/Mines | Destroyed by as-35430 with Assembled Maul Last Messages --------------- 00606_ KH-IAI(h) system corrupted by crushing effect. 00606_ KH-IAI(h) destroyed. 00608_ G-47 Trooper destroyed. 00613_ Lgt. Assault Rifle destroyed. 00613_ Acquired 30 matter. 00614_ G-34 Mercenary destroyed. 00615_ Mining Laser destroyed. 00615_ Visual Processing Unit destroyed. 00615_ System corrupted by crushing effect (+5). 00615_ Knocked back. 00620_ as-58945 destroyed. 00620_ Nuclear Core destroyed. 00620_ Aluminum Leg destroyed. 00620_ Imp. Aluminum Leg destroyed. 00620_ Signal Interpreter destroyed. 00620_ System corrupted by crushing effect (+3). 00620_ System corrupted by crushing effect (+5). 00620_ System corrupted by crushing effect (+4). 00620_ System corrupted by crushing effect (+5). 00622_ QTTS,E2/D %>MCM4C8O8P Map ----- +----------------------------------------------------+ | | | | | | | | | | | | | | | | | | | | | | | | | | | | | ?????????????????????????????????? | | ?????????????????????????????????? | | ?????????????????????????????????? | | ?????????????????????????????????? | | ?????????????????????????????????? | | ?????????????????????????????????? | | ?????????????????????????????????? | | ?????????????????????????????????? | | ?????????????????????????????????? | | ??????####???????????????????????? | | ??????# ##??????????????????????? | | ??????# @#??????????????????????? | | ?????## aa####???????????????????? | | ???### a ### ???????????????????? | | ??## a##?# #???????????????????? | | ??# aa##?# ###?????????????????? | | ??# a "#?# # #?????????????????? | | ??## a *%### "#??????????????????? | | ???# [ ## ###### #????????? | | ???## =%% #????????? | | ????## #### ### #???????? | | ?????## ##??????????????????????? | | ??????####???????????????????????? | | ?????????????????????????????????? | | ?????????????????????????????????? | | ?????????????????????????????????? | | ?????????????????????????????????? | | ?????????????????????????????????? | | ?????????????????????????????????? | | ?????????????????????????????????? | | ?????????????????????????????????? | | ?????????????????????????????????? | | ?????????????????????????????????? | | ?????????????????????????????????? | | ?????????????????????????????????? | | ?????????????????????????????????? | +----------------------------------------------------+ Best States ------------- Heat Dissipation 28 Energy Generation 14 Energy Capacity 250 Matter Stores 300 Matter Capacity 300 Sight Range 18 Robot Scan Range 14 Terrain Scan Density 10 Evasion (%) 55 Recoil Reduction 2 Item Schematics ----------------- None Robot Schematics ------------------ None Fabricated ------------ Nothing Alien Tech Used ----------------- None Achievements -------------- None Challenges ------------ None Game ------ Seed BiometalCoreMegatreads Manual? 0 Play Time 00:07:11 Cumulative 12.2 hours Start 2024.07.13 @ 22:38:23 End 2024.07.13 @ 22:44:57 Sessions 1 Manual Loads 0 Difficulty Rogue Special Mode None Game No. 25 Rogue 25 Adventurer 0 Explorer 0 Win Type - Total 0 Types 0/0/0/0/0/0/0/0/0 Lore% 16 Gallery% 22 Achievement% 15 Wizard Run 0 Options --------- Layout 0 ASCII 0 Keyboard 0 Movement Mouse Keybinds 0 Fullscreen 1 Font 18/X11Bold Map View 38x25 Zoom Use 100% Tactical HUD 1 Map Filters NONE Filters NONE Steam 1 RUN: 476ea98c-967f-4cd4-bd12-fa8efaa3f522